Workbook

Sheet Startmenu

Sheet Tanken Rijksweg of lokaal
C8: Selecteer hieronder uw uitgangspunten
B9: Gebied
B10: Deelmarkt
B11: Type voertuig
C12: =C10&C11 -> 
C13: Uitgangspunten | D13: Vul hieronder andere waardes in (verplicht)
B14: Te tanken hoeveelheid (in liters) | C14: =IF(OR(C9="",C10="",C11=""),"",IF(D14="","",D14)) -> 
B15: Omrijdkilometers | C15: =IF(OR(C9="",C10="",C11=""),"",IF(D15="","",D15)) -> 
C17: Uitgangspunten | D17: Vul hieronder andere waardes in indien gewenst
B18: Brandstofprijs langs Rijksweg (in euro per liter) | C18: =IF(OR(C9="",C10="",C11=""),"",IF(D18="",HLOOKUP(C12,Data!B4:AQ11,2,0),D18)) -> 
B19: Brandstofprijs lokaal (in euro per liter) | C19: =IF(OR(C9="",C10="",C11=""),"",IF(D19="",C18-0.1,D19)) -> 
B20: Verschil in brandstofprijs (in euro per liter) | C20: =IF(OR(C9="",C10="",C11=""),"",IF(D20="",C18-C19,D20)) -> 
C22: Uitgangspunten | D22: Vul hieronder andere waardes in indien gewenst
B23: Gemiddelde snelheid (in km/uur) | C23: =IF(OR(C9="",C10="",C11=""),"",IF(D23="",HLOOKUP(C12,Data!B4:AQ11,7,),D23)) -> 
B24: Extra benodigde tijd (in minuten) | C24: =IF(OR(C9="",C10="",C11="",C15="",C23=""),"",IF(D24="",C15/C23*60,D24)) -> 
C26: Uitgangspunten | D26: Vul hieronder andere waardes in indien gewenst
B27: Kosten per uur | C27: =IF(OR(C9="",C10="",C11=""),"",IF(D27="",HLOOKUP(C12,Data!B4:AQ11,6,0),D27)) -> 
C29: Uw resultaten
B30: Kosten omrijden en daar tanken | C30: =IF(OR(C9="",C10="",C11="",C15=""),"",C24/60*C27) -> 
B31: Voordeel omrijden en daar tanken | C31: =IF(OR(C9="",C10="",C11="",C14=""),"",C20*C14) -> 
B32: Totaal | C32: =IF(OR(C9="",C10="",C11="",C15="",C14=""),"",C31-C30) -> 
B33: Conclusie | C33: =IF(OR(C9="",C10="",C11="",C15="",C14=""),"",IF(C32=0,"GEEN VERSCHIL",IF(C32>5%*C30,"OMRIJDEN FLINK VOORDELIGER",IF(AND(C32>0,C32<=5%*C30),"OMRIJDEN IETS VOORDELIGER",IF(AND(C32>=-5%*C30,C32<0),"OMRIJDEN IETS ONVOORDELIGER","OMRIJDEN FLINK ONVOORDELIGER"))))) -> 

Sheet Favoriete tankstation of elders
C8: Selecteer hieronder uw uitgangspunten
B9: Gebied
B10: Deelmarkt
B11: Type voertuig
C12: =C10&C11 -> 
C13: Uitgangspunten | D13: Vul hieronder waardes in (verplicht)
B14: Te tanken hoeveelheid (in liters) | C14: =IF(OR(C9="",C10="",C11=""),"",IF(D14="","",D14)) -> 
B15: Omrijdkilometers | C15: =IF(OR(C9="",C10="",C11=""),"",IF(D15="","",D15)) -> 
B16: Extra wachttijd (in minuten) | C16: =IF(OR(C9="",C10="",C11=""),"",IF(D16="","",D16)) -> 
C18: Uitgangspunten | D18: Vul hieronder andere waardes in indien gewenst
B19: Brandstofprijs elders (in euro per liter) | C19: =IF(OR(C9="",C10="",C11=""),"",IF(D19="",C20+0.2,D19)) -> 
B20: Brandstofprijs favoriete tankstation (in euro per liter) | C20: =IF(OR(C9="",C10="",C11=""),"",IF(D20="",HLOOKUP(C12,Data!B4:AQ11,3,0),D20)) -> 
B21: Verschil in brandstofprijs (in euro per liter) | C21: =IF(OR(C9="",C10="",C11=""),"",IF(D21="",C19-C20,D21)) -> 
C23: Uitgangspunten | D23: Vul hieronder andere waardes in indien gewenst
B24: Gemiddelde snelheid (in km/uur) | C24: =IF(OR(C9="",C10="",C11=""),"",IF(D24="",HLOOKUP(C12,Data!B4:AQ11,7,),D24)) -> 
B25: Extra benodigde tijd voor rijden (in minuten) | C25: =IF(OR(C9="",C10="",C11="",C15="",C24=""),"",IF(D25="",C15/C24*60,D25)) -> 
B26: Totaal extra benodigde tijd (in minuten) | C26: =IF(OR(C9="",C10="",C11="",C15="",C16="",C24=""),"",C16+C25) -> 
C28: Uitgangspunten | D28: Vul hieronder andere waardes in indien gewenst
B29: Kosten per uur | C29: =IF(OR(C9="",C10="",C11=""),"",IF(D29="",HLOOKUP(C12,Data!B4:AQ11,6,0),D29)) -> 
B30: Vaste kosten per uur* | C30: =IF(OR(C9="",C10="",C11=""),"",IF(D30="",HLOOKUP(C12,Data!B4:AQ11,8,0),D30)) ->  | E30: * Vaste kosten betreffen de totale kosten minus de variabele kosten (afschrijving, brandstof, banden en R&O)
C32: Uw resultaten
B33: Kosten omrijden, wachttijd tanken favoriete tankstation | C33: =IF(OR(C9="",C10="",C11="",C15="",C16=""),"",C25/60*C29+C16/60*C30) -> 
B34: Voordeel tanken favoriete tankstation | C34: =IF(OR(C9="",C10="",C11="",C14=""),"",C21*C14) -> 
B35: Totaal | C35: =IF(OR(C9="",C10="",C11="",C14="",C15="",C16=""),"",C34-C33) -> 
B36: Conclusie | C36: =IF(OR(C9="",C10="",C11="",C14="",C15="",C16=""),"",IF(C35=0,"GEEN VERSCHIL",IF(C35>5%*C33,"OMRIJDEN FLINK VOORDELIGER",IF(AND(C35>0,C35<=5%*C33),"OMRIJDEN IETS VOORDELIGER",IF(AND(C35>=-5%*C33,C35<0),"OMRIJDEN IETS ONVOORDELIGER","OMRIJDEN FLINK ONVOORDELIGER"))))) -> 

Sheet Door file of omrijden
C8: Selecteer hieronder uw uitgangspunten
B9: Gebied
B10: Deelmarkt
B11: Type voertuig
C12: =C10&C11 -> 
C13: Uitgangspunten | D13: Vul hieronder waardes in (verplicht)
B14: Omrijdkilometers | C14: =IF(OR(C9="",C10="",C11=""),"",IF(D14="","",D14)) -> 
B15: Tolkosten bij omrijden (in euro) | C15: =IF(OR(C9="",C10="",C11=""),"",IF(D15="","",D15)) -> 
B16: Tijdsduur file (in minuten) | C16: =IF(OR(C9="",C10="",C11=""),"",IF(D16="","",D16)) -> 
C18: Uitgangspunten | D18: Vul hieronder andere waardes in indien gewenst
B19: Kosten per kilometer | C19: =IF(OR(C9="",C10="",C11=""),"",IF(D19="",HLOOKUP(C12,Data!B4:AQ11,5,0),D19)) -> 
B20: Kosten per uur | C20: =IF(OR(C9="",C10="",C11=""),"",IF(D20="",HLOOKUP(C12,Data!B4:AQ11,6,0),D20)) -> 
C22: Uw resultaten
B23: Kosten in file blijven staan | C23: =IF(OR(C9="",C10="",C11="",C14="",C16=""),"",C16/60*C20) -> 
B24: Kosten omrijden | C24: =IF(OR(C9="",C10="",C11="",C14="",C15="",C16=""),"",C14*C19+C15) -> 
B25: Totaal | C25: =IF(OR(C9="",C10="",C11="",C14="",C15="",C16=""),"",C23-C24) -> 
B26: Conclusie | C26: =IF(OR(C9="",C10="",C11="",C14="",C15="",C16=""),"",IF(C25=0,"GEEN VERSCHIL",IF(C25>5%*C23,"OMRIJDEN FLINK VOORDELIGER",IF(AND(C25>0,C25<=5%*C23),"OMRIJDEN IETS VOORDELIGER",IF(AND(C25>=-5%*C23,C25<0),"OMRIJDEN IETS ONVOORDELIGER","OMRIJDEN FLINK ONVOORDELIGER"))))) -> 

Sheet Kortste vs snelste route
C8: Selecteer hieronder uw uitgangspunten
B9: Gebied
B10: Deelmarkt
B11: Type voertuig
C12: =C10&C11 -> 
C13: Uitgangspunten | D13: Vul hieronder waardes in (verplicht)
B14: Aantal kilometers kortste route | C14: =IF(OR(C9="",C10="",C11=""),"",IF(D14="","",D14)) -> 
B15: Aantal kilometers snelste route | C15: =IF(OR(C9="",C10="",C11=""),"",IF(D15="","",D15)) -> 
B16: Tijdsduur kortste route (in minuten) | C16: =IF(OR(C9="",C10="",C11=""),"",IF(D16="","",D16)) -> 
B17: Tijdsduur snelste route (in minuten) | C17: =IF(OR(C9="",C10="",C11=""),"",IF(D17="","",D17)) -> 
C19: Uitgangspunten | D19: Vul hieronder andere waardes in indien gewenst
B20: Kosten per kilometer | C20: =IF(OR(C9="",C10="",C11=""),"",IF(D20="",HLOOKUP(C12,Data!B4:AQ11,5,0),D20)) -> 
B21: Kosten per uur | C21: =IF(OR(C9="",C10="",C11=""),"",IF(D21="",HLOOKUP(C12,Data!B4:AQ11,6,0),D21)) -> 
C23: Uw resultaten
B24: Kostenvoordeel kortste route | C24: =IF(OR(C9="",C10="",C11="",C14="",C15=""),"",IF(C14>C15,"KORTSTE ROUTE IS NOOIT LANGER DAN DE SNELSTE ROUTE",(C15-C14)*C20)) -> 
B25: Kostenvoordeel snelste route | C25: =IF(OR(C9="",C10="",C11="",C16="",C17=""),"",IF(C17>C16,"SNELSTE ROUTE DUURT NOOIT LANGER DAN KORTSTE ROUTE",(C16-C17)/60*C21)) -> 
B26: Totaal | C26: =IF(OR(C9="",C10="",C11="",C17="",C14=""),"",C24-C25) -> 
B27: Conclusie | C27: =IF(OR(C9="",C10="",C11="",C14="",C17=""),"",IF(C26=0,"GEEN VERSCHIL",IF(C26>5%*C24,"KORTSTE ROUTE FLINK VOORDELIGER",IF(AND(C26>0,C26<=5%*C24),"KORTSTE ROUTE IETS VOORDELIGER",IF(AND(C26>=-5%*C24,C26<0),"SNELSTE ROUTE IETS VOORDELIGER","SNELSTE ROUTE FLINK VOORDELIGER"))))) -> 

Sheet Naar thuis of parkeren
C9: Selecteer hieronder uw uitgangspunten
B10: Gebied
B11: Deelmarkt
B12: Type voertuig
C13: =C11&C12 -> 
C14: Uitgangspunten | D14: Vul hieronder waardes in (verplicht)
B15: Aantal kilometers naar parkeerplaats (A) | C15: =IF(OR(C10="",C11="",C12=""),"",IF(D15="","",D15)) -> 
B16: Aantal kilometers van parkeerplaats naar volgend adres (B) | C16: =IF(OR(C10="",C11="",C12=""),"",IF(D16="","",D16)) -> 
B17: Aantal kilometers naar standplaats (C) | C17: =IF(OR(C10="",C11="",C12=""),"",IF(D17="","",D17)) -> 
B18: Aantal kilometers van standplaats naar volgend adres (D) | C18: =IF(OR(C10="",C11="",C12=""),"",IF(D18="","",D18)) -> 
B19: Reiskosten chauffeur naar huis en van huis terug naar parkeerplaats (in euro's) | C19: =IF(OR(C10="",C11="",C12=""),"",IF(D19="","",D19)) -> 
B20: Kosten parkeren (in euro's) | C20: =IF(OR(C10="",C11="",C12=""),"",IF(D20="","",D20)) -> 
C22: Uitgangspunten | D22: Vul hieronder andere waardes in indien gewenst
B23: Kosten per kilometer | C23: =IF(OR(C10="",C11="",C12=""),"",IF(D23="",HLOOKUP(C13,Data!B4:AQ11,5,0),D23)) -> 
B24: Kosten per uur | C24: =IF(OR(C10="",C11="",C12=""),"",IF(D24="",HLOOKUP(C13,Data!B4:AQ11,6,0),D24)) -> 
C26: Uw resultaten
B27: Kosten naar thuis/standplaats | C27: =IF(OR(C10="",C11="",C12="",C17="",C18=""),"",(C17+C18)*C23) -> 
B28: Kosten bij parkeren | C28: =IF(OR(C10="",C11="",C12="",C15="",C16="",C19="",C20=""),"",(C15+C16)*C23+C19+C20) -> 
B29: Totaal | C29: =IF(OR(C10="",C11="",C12="",C27="",C28=""),"",C27-C28) -> 
B30: Conclusie | C30: =IF(OR(C10="",C11="",C12="",C27="",C28=""),"",IF(C29=0,"GEEN VERSCHIL",IF(C29>5%*C27,"PARKEREN FLINK VOORDELIGER",IF(AND(C29>0,C29<=5%*C27),"PARKEREN IETS VOORDELIGER",IF(AND(C29>=-5%*C27,C29<0),"NAAR THUIS/STANDPLAATS IETS VOORDELIGER","NAAR THUIS/STANDPLAATS FLINK VOORDELIGER"))))) -> 

Sheet Kosten wegafsluiting
C8: Selecteer hieronder uw uitgangspunten
B9: Gebied
B10: Deelmarkt
B11: Type voertuig
C12: =C10&C11 -> 
C13: Uitgangspunten | D13: Vul hieronder waardes in (verplicht)
B14: Gemiddeld aantal ritten per dag langs de wegafsluiting | C14: =IF(OR(C9="",C10="",C11=""),"",IF(D14="","",D14)) -> 
B15: Tijdsperiode van de wegafsluiting (in dagen) | C15: =IF(OR(C9="",C10="",C11=""),"",IF(D15="","",D15)) -> 
B16: Omrijdkilometers vanwege de wegafsluiting per rit | C16: =IF(OR(C9="",C10="",C11=""),"",IF(D16="","",D16)) -> 
C18: Uitgangspunten | D18: Vul hieronder andere waardes in indien gewenst
B19: Totaal aantal omrijdkilometers | C19: =IF(OR(C9="",C10="",C11="",C14="",C15="",C16=""),"",IF(D19="",C14*C15*C16,D19)) -> 
C21: Uitgangspunten | D21: Vul hieronder andere waardes in indien gewenst
B22: Kosten per kilometer | C22: =IF(OR(C9="",C10="",C11=""),"",IF(D22="",HLOOKUP(C12,Data!B4:AQ11,5,0),D22)) -> 
C24: Uw resultaten
B25: Totale kosten wegafsluiting | C25: =IF(OR(C9="",C10="",C11="",C19=""),"",C19*C22) -> 

Sheet Data (hidden)
B1: 1 | C1: 2 | D1: 3 | E1: 4 | F1: 5 | G1: 6 | H1: 7 | I1: 8 | J1: 9 | K1: 10 | L1: 11 | M1: 12 | N1: 13 | O1: 14 | P1: 15 | Q1: 16 | R1: 17 | S1: 18 | T1: 19 | U1: 20 | V1: 21 | W1: 22 | X1: 23 | Y1: 24 | Z1: 25 | AA1: 26 | AB1: 27 | AC1: 28 | AD1: 29 | AE1: 30 | AF1: 31 | AG1: 32 | AH1: 33 | AI1: 34 | AJ1: 35 | AK1: 36 | AL1: 37 | AM1: 38 | AN1: 40 | AO1: 42 | AP1: 44 | AQ1: 46
A2: Deelmarkt | B2: Algemeen distributievervoer | C2: Algemeen distributievervoer | D2: Algemeen distributievervoer | E2: Algemeen distributievervoer | F2: Algemeen distributievervoer | G2: Wagenladingvervoer | H2: Wagenladingvervoer | I2: Koel-vries vervoer | J2: Koel-vries vervoer | K2: Koel-vries vervoer | L2: Koel-vries vervoer | M2: Koel-vries vervoer | N2: Koel-vries vervoer | O2: Zeecontainervervoer | P2: Vervoer met kiepers | Q2: Vervoer met kiepers | R2: Tankvervoer | S2: Bulkvervoer | T2: LZV's | U2: LZV's | V2: Vervoer op Duitsland | W2: Vervoer op Duitsland | X2: Vervoer op Frankrijk | Y2: Vervoer op Frankrijk | Z2: Vervoer op Italië | AA2: Vervoer op Italië | AB2: Vervoer op Spanje | AC2: Vervoer op Spanje | AD2: Vervoer op Polen | AE2: Vervoer op Polen | AF2: Vervoer op Engeland | AG2: Vervoer op Engeland | AH2: Koel-vries vervoer Duitsland | AI2: Koel-vries vervoer Frankrijk | AJ2: Koel-vries vervoer Italië | AK2: Koel-vries vervoer Spanje | AL2: Koel-vries vervoer Polen | AM2: Tankvervoer Duitsland | AN2: Tankvervoer Frankrijk | AO2: Tankvervoer Italië | AP2: Tankvervoer Spanje | AQ2: Tankvervoer Polen
A3: Type voertuig | B3: Lichte vrachtwagen <12 ton | C3: Vrachtwagen 12-16 ton | D3: Vrachtwagen, 16 ton en meer | E3: Vrachtwagen + aanhanger | F3: Trekker + oplegger | G3: Vrachtwagen + aanhanger | H3: Trekker + oplegger | I3: Solo, inclusief koelmotor | J3: Solo, isotherm | K3: Vrachtwagen + aanhanger, incl. koelmotor | L3: Vrachtwagen + aanhanger, isotherm | M3: Trekker + oplegger, incl. koelmotor | N3: Trekker + oplegger, isotherm | O3: Trekker + opleggerchassis | P3: Solo vrachtwagen | Q3: Vrachtwagen + aanhanger | R3: Trekker + oplegger | S3: Trekker + oplegger | T3: Trekker + oplegger + middenasaanhangwagen | U3: Vrachtauto + dolly + oplegger | V3: Vrachtwagen + aanhanger | W3: Trekker + oplegger | X3: Vrachtwagen + aanhanger | Y3: Trekker + oplegger | Z3: Vrachtwagen + aanhanger | AA3: Trekker + oplegger | AB3: Vrachtwagen + aanhanger | AC3: Trekker + oplegger | AD3: Vrachtwagen + aanhanger | AE3: Trekker + oplegger | AF3: Trekker + oplegger; via Eurotunnel | AG3: Trekker + oplegger; via ferrydienst | AH3: Trekker + oplegger | AI3: Trekker + oplegger | AJ3: Trekker + oplegger | AK3: Trekker + oplegger | AL3: Trekker + oplegger | AM3: Trekker + oplegger | AN3: Trekker + oplegger | AO3: Trekker + oplegger | AP3: Trekker + oplegger | AQ3: Trekker + oplegger
A4: A2 & A3 | B4: =B2&B3 -> Algemeen distributievervoerLichte vrachtwagen <12 ton | C4: Algemeen distributievervoerVrachtwagen 12-16 ton | D4: Algemeen distributievervoerVrachtwagen, 16 ton en meer | E4: =E2&E3 -> Algemeen distributievervoerVrachtwagen + aanhanger | F4: =F2&F3 -> Algemeen distributievervoerTrekker + oplegger | G4: =G2&G3 -> WagenladingvervoerVrachtwagen + aanhanger | H4: WagenladingvervoerTrekker + oplegger | I4: Koel-vries vervoerSolo, inclusief koelmotor | J4: Koel-vries vervoerSolo, isotherm | K4: Koel-vries vervoerVrachtwagen + aanhanger, incl. koelmotor | L4: Koel-vries vervoerVrachtwagen + aanhanger, isotherm | M4: Koel-vries vervoerTrekker + oplegger, incl. koelmotor | N4: Koel-vries vervoerTrekker + oplegger, isotherm | O4: ZeecontainervervoerTrekker + opleggerchassis | P4: Vervoer met kiepersSolo vrachtwagen | Q4: Vervoer met kiepersVrachtwagen + aanhanger | R4: TankvervoerTrekker + oplegger | S4: BulkvervoerTrekker + oplegger | T4: LZV'sTrekker + oplegger + middenasaanhangwagen | U4: LZV'sVrachtauto + dolly + oplegger | V4: Vervoer op DuitslandVrachtwagen + aanhanger | W4: Vervoer op DuitslandTrekker + oplegger | X4: Vervoer op FrankrijkVrachtwagen + aanhanger | Y4: Vervoer op FrankrijkTrekker + oplegger | Z4: Vervoer op ItaliëVrachtwagen + aanhanger | AA4: Vervoer op ItaliëTrekker + oplegger | AB4: Vervoer op SpanjeVrachtwagen + aanhanger | AC4: Vervoer op SpanjeTrekker + oplegger | AD4: Vervoer op PolenVrachtwagen + aanhanger | AE4: Vervoer op PolenTrekker + oplegger | AF4: Vervoer op EngelandTrekker + oplegger; via Eurotunnel | AG4: Vervoer op EngelandTrekker + oplegger; via ferrydienst | AH4: Koel-vries vervoer DuitslandTrekker + oplegger | AI4: Koel-vries vervoer FrankrijkTrekker + oplegger | AJ4: Koel-vries vervoer ItaliëTrekker + oplegger | AK4: Koel-vries vervoer SpanjeTrekker + oplegger | AL4: Koel-vries vervoer PolenTrekker + oplegger | AM4: Tankvervoer DuitslandTrekker + oplegger | AN4: Tankvervoer FrankrijkTrekker + oplegger | AO4: Tankvervoer ItaliëTrekker + oplegger | AP4: Tankvervoer SpanjeTrekker + oplegger | AQ4: Tankvervoer PolenTrekker + oplegger
A5: Brandstofprijs langs Rijksweg (in euro per liter) | B5: 1.2 | C5: 1.2 | D5: 1.2 | E5: 1.2 | F5: 1.2 | G5: 1.2 | H5: 1.2 | I5: 1.2 | J5: 1.2 | K5: 1.2 | L5: 1.2 | M5: 1.2 | N5: 1.2 | O5: 1.2 | P5: 1.2 | Q5: 1.2 | R5: 1.2 | S5: 1.2 | T5: 1.2 | U5: 1.2 | V5: 1.2 | W5: 1.2 | X5: 1.2 | Y5: 1.2 | Z5: 1.2 | AA5: 1.2 | AB5: 1.2 | AC5: 1.2 | AD5: 1.2 | AE5: 1.2 | AF5: 1.2 | AG5: 1.2 | AH5: 1.2 | AI5: 1.2 | AJ5: 1.2 | AK5: 1.2 | AL5: 1.2 | AM5: 1.2 | AN5: 1.2 | AO5: 1.2 | AP5: 1.2 | AQ5: 1.2
A6: Brandstofprijs Luxemburg (in euro per liter) | B6: 1.01 | C6: 1.01 | D6: 1.01 | E6: 1.01 | F6: 1.01 | G6: 1.01 | H6: 1.01 | I6: 1.01 | J6: 1.01 | K6: 1.01 | L6: 1.01 | M6: 1.01 | N6: 1.01 | O6: 1.01 | P6: 1.01 | Q6: 1.01 | R6: 1.01 | S6: 1.01 | T6: 1.01 | U6: 1.01 | V6: 1.01 | W6: 1.01 | X6: 1.01 | Y6: 1.01 | Z6: 1.01 | AA6: 1.01 | AB6: 1.01 | AC6: 1.01 | AD6: 1.01 | AE6: 1.01 | AF6: 1.01 | AG6: 1.01 | AH6: 1.01 | AI6: 1.01 | AJ6: 1.01 | AK6: 1.01 | AL6: 1.01 | AM6: 1.01 | AN6: 1.01 | AO6: 1.01 | AP6: 1.01 | AQ6: 1.01
A8: Kosten per kilometer | B8: 1.41 | C8: 1.53 | D8: 1.6 | E8: 1.87 | F8: 1.84 | G8: 1.69 | H8: 1.67 | I8: 1.83 | J8: 1.74 | K8: 1.97 | L8: 1.8 | M8: 1.84 | N8: 1.73 | O8: 1.38 | P8: 2.36 | Q8: 1.94 | R8: 1.62 | S8: 1.59 | T8: 1.63 | U8: 1.68 | V8: 1.45 | W8: 1.41 | X8: 1.5 | Y8: 1.45 | Z8: 1.45 | AA8: 1.4 | AB8: 1.27 | AC8: 1.23 | AD8: 1.64 | AE8: 1.59 | AF8: 2.21 | AG8: 3.21 | AH8: 1.53 | AI8: 1.57 | AJ8: 1.52 | AK8: 1.33 | AL8: 1.72 | AM8: 1.59 | AN8: 1.64 | AO8: 1.59 | AP8: 1.4 | AQ8: 1.77
A9: Kosten per uur | B9: 43.36 | C9: 47.09 | D9: 49.28 | E9: 57.29 | F9: 56.68 | G9: 59.96 | H9: 59.35 | I9: 49.52 | J9: 46.96 | K9: 68.24 | L9: 62.57 | M9: 63.75 | N9: 60.15 | O9: 57.2 | P9: 50.13 | Q9: 64.43 | R9: 68.57 | S9: 67.52 | T9: 61.89 | U9: 63.59 | V9: 72.66 | W9: 70.33 | X9: 71.51 | Y9: 69.22 | Z9: 72.3 | AA9: 69.97 | AB9: 76.14 | AC9: 73.75 | AD9: 68.84 | AE9: 66.7 | AF9: 88.6 | AG9: 116.63 | AH9: 76.28 | AI9: 75.12 | AJ9: 76 | AK9: 79.68 | AL9: 72.15 | AM9: 76.57 | AN9: 75.41 | AO9: 76.29 | AP9: 79.99 | AQ9: 72.54
A10: Gemiddelde snelheid (in km/uur) | B10: =B9/B8 -> 30.75177305 | C10: 30.77777778 | D10: 30.8 | E10: =E9/E8 -> 30.63636364 | F10: =F9/F8 -> 30.80434783 | G10: =G9/G8 -> 35.47928994 | H10: =H9/H8 -> 35.53892216 | I10: 27.06010929 | J10: 26.98850575 | K10: 34.63959391 | L10: 34.76111111 | M10: 34.64673913 | N10: 34.76878613 | O10: 41.44927536 | P10: 21.24152542 | Q10: 33.21134021 | R10: 42.32716049 | S10: 42.46540881 | T10: 37.96932515 | U10: 37.85119048 | V10: 50.11034483 | W10: 49.87943262 | X10: 47.67333333 | Y10: 47.73793103 | Z10: 49.86206897 | AA10: 49.97857143 | AB10: 59.95275591 | AC10: 59.95934959 | AD10: 41.97560976 | AE10: 41.94968553 | AF10: 40.09049774 | AG10: 36.33333333 | AH10: 49.85620915 | AI10: 47.84713376 | AJ10: 50 | AK10: 59.90977444 | AL10: 41.94767442 | AM10: 48.1572327 | AN10: 45.98170732 | AO10: 47.98113208 | AP10: 57.13571429 | AQ10: 40.98305085
A11: Vaste kosten per uur | B11: =(110051-25360)/2538 -> 33.36918834 | C11: =(119504-31940)/2538 -> 34.50118203 | D11: =(125066-36282)/2538 -> 34.98187549 | E11: =(146169-47323)/2538 -> 38.9464145 | F11: =(143845-44670)/2538 -> 39.07604413 | G11: =(152173-52502)/2538 -> 39.2714736 | H11: =(150635-50405)/2538 -> 39.49172577 | I11: =(128362-36017)/2592 -> 35.62692901 | J11: =(121711-32596)/2592 -> 34.38078704 | K11: =(176868-64382)/2592 -> 43.39737654 | L11: =(162174-56912)/2592 -> 40.61033951 | M11: =(165233-53675)/2592 -> 43.03935185 | N11: =(155908-50277)/2592 -> 40.75270062 | O11: =(145178-54683)/2538 -> 35.65602837 | P11: =(117913-37405)/2352 -> 34.22959184 | Q11: =(151528-53994)/2352 -> 41.46853741 | R11: =(177737-65832)/2592 -> 43.17322531 | S11: =(175006-66186)/2592 -> 41.98302469 | T11: =(163387-61281)/2640 -> 38.67651515 | U11: =(167871-65014)/2640 -> 38.96098485 | V11: =(188928-71469)/2600 -> 45.17653846 | W11: =(182865-66882)/2600 -> 44.60884615 | X11: =(186990-69325)/2615 -> 44.99617591 | Y11: =(181003-64804)/2615 -> 44.43556405 | Z11: =(209663-78931)/2900 -> 45.08 | AA11: =(202908-73780)/2900 -> 44.52689655 | AB11: =(228427-93514)/3000 -> 44.971 | AC11: =(221261-87970)/3000 -> 44.43033333 | AD11: =(205131-72827)/2980 -> 44.39731544 | AE11: =(198760-67911)/2980 -> 43.9090604 | AF11: =(231699-54442)/2615 -> 67.78470363 | AG11: =(304982-49257)/2615 -> 97.791587 | AH11: =(198331-72746)/2600 -> 48.30192308 | AI11: =(196437-70636)/2615 -> 48.10745698 | AJ11: =(220398-80413)/2900 -> 48.27068966 | AK11: =(239054-94829)/3000 -> 48.075 | AL11: =(215009-74584)/2980 -> 47.12248322 | AM11: =(199089-72318)/2600 -> 48.75807692 | AN11: =(197184-70045)/2615 -> 48.61912046 | AO11: =(222385-80327)/2915 -> 48.73344768 | AP11: =(238375-93451)/2980 -> 48.63221477 | AQ11: =(216164-74521)/2980 -> 47.53120805

Sheet Info listbox (hidden)
A1: Gebied | B1: Deelmarkt | C1: Voertuigtype
A2: Binnenlands | B2: Algemeen distributievervoer | C2: Lichte vrachtwagen <12 ton | F2: Binnenlands | G2: DeelmarktB
A3: Grensoverschrijdend | B3: Wagenladingvervoer | C3: Vrachtwagen 12-16 ton | F3: Grensoverschrijdend | G3: DeelmarktG
B4: Koel-vries vervoer | C4: Vrachtwagen, 16 ton en meer
B5: Zeecontainervervoer | C5: Vrachtwagen + aanhanger | F5: Algemeen distributievervoer | G5: Voertuigtype1
B6: Vervoer met kiepers | C6: Trekker + oplegger | F6: Wagenladingvervoer | G6: Voertuigtype2
B7: Tankvervoer | F7: Koel-vries vervoer | G7: Voertuigtype3
B8: Bulkvervoer | C8: Vrachtwagen + aanhanger | F8: Zeecontainervervoer | G8: Voertuigtype4
B9: LZV's | C9: Trekker + oplegger | F9: Vervoer met kiepers | G9: Voertuigtype5
F10: Tankvervoer | G10: Voertuigtype6
B11: Vervoer op Duitsland | C11: Solo, inclusief koelmotor | F11: Bulkvervoer | G11: Voertuigtype6
B12: Vervoer op Frankrijk | C12: Solo, isotherm | F12: LZV's | G12: Voertuigtype7
B13: Vervoer op Italië | C13: Vrachtwagen + aanhanger, incl. koelmotor | F13: Vervoer op Duitsland | G13: Voertuigtype2
B14: Vervoer op Spanje | C14: Vrachtwagen + aanhanger, isotherm | F14: Vervoer op Frankrijk | G14: Voertuigtype2
B15: Vervoer op Polen | C15: Trekker + oplegger, incl. koelmotor | F15: Vervoer op Italië | G15: Voertuigtype2
B16: Vervoer op Engeland | C16: Trekker + oplegger, isotherm | F16: Vervoer op Spanje | G16: Voertuigtype2
B17: Koel-vries vervoer Duitsland | F17: Vervoer op Polen | G17: Voertuigtype2
B18: Koel-vries vervoer Frankrijk | C18: Trekker + opleggerchassis | F18: Vervoer op Engeland | G18: Voertuigtype8
B19: Koel-vries vervoer Italië | F19: Koel-vries vervoer Duitsland | G19: Voertuigtype6
B20: Koel-vries vervoer Spanje | C20: Solo vrachtwagen | F20: Koel-vries vervoer Frankrijk | G20: Voertuigtype6
B21: Koel-vries vervoer Polen | C21: Vrachtwagen + aanhanger | F21: Koel-vries vervoer Italië | G21: Voertuigtype6
B22: Tankvervoer Duitsland | F22: Koel-vries vervoer Spanje | G22: Voertuigtype6
B23: Tankvervoer Frankrijk | C23: Trekker + oplegger | F23: Koel-vries vervoer Polen | G23: Voertuigtype6
B24: Tankvervoer Italië | F24: Tankvervoer Duitsland | G24: Voertuigtype6
B25: Tankvervoer Spanje | C25: Trekker + oplegger + middenasaanhangwagen | F25: Tankvervoer Frankrijk | G25: Voertuigtype6
B26: Tankvervoer Polen | C26: Vrachtauto + dolly + oplegger | F26: Tankvervoer Italië | G26: Voertuigtype6
F27: Tankvervoer Spanje | G27: Voertuigtype6
C28: Trekker + oplegger; via Eurotunnel | F28: Tankvervoer Polen | G28: Voertuigtype6
C29: Trekker + oplegger; via ferrydienst
A36: Gebied | B36: Deelmarkt | C36: Voertuigtype
A37: Grensoverschrijdend | B37: Koel-vries vervoer Duitsland | C37: Trekker + oplegger
